[Event "Betsys MČR v online bleskovém šachu 2021"]
[Site "Chess.com"]
[Date "2021.04.17"]
[Round "13"]
[White "sachistamartin"]
[Black "Ondre2836"]
[Result "0-1"]
[WhiteElo "1414"]
[BlackElo "1277"]
[TimeControl "180+1"]
[EndTime "11:11:23 PDT"]
[Termination "Uživatel Ondre2836 zvítězil matem"]

1. c4 {[%clk 0:03:00.9]} 1... c5 {[%clk 0:02:58]} 2. Nf3 {[%clk 0:03:00.1]} 2...
Nf6 {[%clk 0:02:56.4]} 3. e3 {[%clk 0:02:59.7]} 3... g6 {[%clk 0:02:55.7]} 4. d4
{[%clk 0:02:59.1]} 4... d6 {[%clk 0:02:45.7]} 5. Nc3 {[%clk 0:02:58.5]} 5... Bg7
{[%clk 0:02:43.5]} 6. Bd3 {[%clk 0:02:57.6]} 6... b6 {[%clk 0:02:38.5]} 7. O-O
{[%clk 0:02:56.9]} 7... Bb7 {[%clk 0:02:37.4]} 8. Qe2 {[%clk 0:02:55.8]} 8...
Nbd7 {[%clk 0:02:36.9]} 9. b3 {[%clk 0:02:54.9]} 9... O-O {[%clk 0:02:32.2]} 10.
Bb2 {[%clk 0:02:54.3]} 10... Qc7 {[%clk 0:02:31]} 11. Rac1 {[%clk 0:02:53.2]}
11... Rfe8 {[%clk 0:02:27.1]} 12. Nb5 {[%clk 0:02:52.5]} 12... Qc8 {[%clk
0:02:22.4]} 13. Rfd1 {[%clk 0:02:49.6]} 13... a6 {[%clk 0:02:18.4]} 14. Nc3
{[%clk 0:02:48.1]} 14... Qc7 {[%clk 0:02:17.4]} 15. dxc5 {[%clk 0:02:47.2]}
15... bxc5 {[%clk 0:02:15.3]} 16. Bb1 {[%clk 0:02:44.8]} 16... Rad8 {[%clk
0:02:12.7]} 17. e4 {[%clk 0:02:37.7]} 17... e5 {[%clk 0:01:47.8]} 18. Nd5 {[%clk
0:02:36.3]} 18... Bxd5 {[%clk 0:01:45.5]} 19. exd5 {[%clk 0:02:35.3]} 19... Qb6
{[%clk 0:01:36.2]} 20. Qe3 {[%clk 0:02:28.1]} 20... Qb4 {[%clk 0:01:24.6]} 21.
a3 {[%clk 0:02:25]} 21... Qb6 {[%clk 0:01:19.4]} 22. Nd2 {[%clk 0:02:18.3]}
22... Ng4 {[%clk 0:01:15.2]} 23. Qg3 {[%clk 0:02:16.5]} 23... Ndf6 {[%clk
0:01:05.8]} 24. h3 {[%clk 0:02:14]} 24... Nh6 {[%clk 0:01:04.3]} 25. Ne4 {[%clk
0:02:12.3]} 25... Nxe4 {[%clk 0:00:50.4]} 26. Bxe4 {[%clk 0:02:11.2]} 26... a5
{[%clk 0:00:44.2]} 27. f4 {[%clk 0:02:09.9]} 27... exf4 {[%clk 0:00:36.5]} 28.
Qh4 {[%clk 0:02:04.7]} 28... Bxb2 {[%clk 0:00:33.8]} 29. Qxh6 {[%clk 0:02:03.7]}
29... Bxc1 {[%clk 0:00:31.8]} 30. Rxc1 {[%clk 0:02:03.3]} 30... Qxb3 {[%clk
0:00:29.1]} 31. Bf3 {[%clk 0:01:52.3]} 31... Qxa3 {[%clk 0:00:24.7]} 32. Rf1
{[%clk 0:01:50.7]} 32... Qe3+ {[%clk 0:00:23.5]} 33. Kh1 {[%clk 0:01:47.1]}
33... a4 {[%clk 0:00:20.2]} 34. Bd1 {[%clk 0:01:42.8]} 34... a3 {[%clk
0:00:19.8]} 35. Qxf4 {[%clk 0:01:38.8]} 35... Qxf4 {[%clk 0:00:19.5]} 36. Rxf4
{[%clk 0:01:38.3]} 36... Re1+ {[%clk 0:00:19.4]} 37. Kh2 {[%clk 0:01:36.7]}
37... Rxd1 {[%clk 0:00:19.6]} 38. Rf2 {[%clk 0:01:36.6]} 38... Ra1 {[%clk
0:00:19]} 39. h4 {[%clk 0:01:30.4]} 39... a2 {[%clk 0:00:18.6]} 40. Kg3 {[%clk
0:01:28.8]} 40... Re8 {[%clk 0:00:16.5]} 41. Rb2 {[%clk 0:01:26.4]} 41... Re3+
{[%clk 0:00:15.6]} 42. Kf4 {[%clk 0:01:23.7]} 42... Ra3 {[%clk 0:00:14.8]} 43.
Kg5 {[%clk 0:01:22.8]} 43... Kg7 {[%clk 0:00:14.7]} 44. g4 {[%clk 0:01:20]}
44... Rg1 {[%clk 0:00:14]} 45. h5 {[%clk 0:01:19.2]} 45... a1=Q {[%clk
0:00:12.7]} 46. h6+ {[%clk 0:01:17.2]} 46... Kf8 {[%clk 0:00:12.3]} 47. Rb8+
{[%clk 0:01:16.4]} 47... Ke7 {[%clk 0:00:11.8]} 48. Rb7+ {[%clk 0:01:15.9]}
48... Kd8 {[%clk 0:00:11.8]} 49. Rb8+ {[%clk 0:01:14.3]} 49... Kc7 {[%clk
0:00:11.9]} 50. Rf8 {[%clk 0:01:06.7]} 50... f6+ {[%clk 0:00:11.2]} 51. Kh4
{[%clk 0:01:04]} 51... Qb2 {[%clk 0:00:07.8]} 52. Rf7+ {[%clk 0:01:02.9]} 52...
Kd8 {[%clk 0:00:06.7]} 53. Rxh7 {[%clk 0:01:01.7]} 53... Qh2# {[%clk 0:00:02.3]}
0-1

[Event "Betsys MČR v online bleskovém šachu 2021"]
[Site "Chess.com"]
[Date "2021.04.17"]
[Round "13"]
[White "MilosJi"]
[Black "petrgnojek"]
[Result "1-0"]
[WhiteElo "2576"]
[BlackElo "2286"]
[TimeControl "180+1"]
[EndTime "11:11:25 PDT"]
[Termination "Uživatel MilosJi zvítězil na čas"]

1. Nf3 {[%clk 0:03:00.9]} 1... d6 {[%clk 0:02:59.1]} 2. d4 {[%clk 0:02:59.5]}
2... g6 {[%clk 0:02:59.8]} 3. g3 {[%clk 0:02:59.7]} 3... Bg7 {[%clk 0:03:00.1]}
4. Bg2 {[%clk 0:03:00.1]} 4... Nf6 {[%clk 0:03:00.2]} 5. O-O {[%clk 0:03:00.3]}
5... O-O {[%clk 0:03:00.2]} 6. c4 {[%clk 0:03:00.9]} 6... Nbd7 {[%clk
0:02:59.5]} 7. Qc2 {[%clk 0:03:00.7]} 7... e5 {[%clk 0:02:59.2]} 8. Rd1 {[%clk
0:03:00.8]} 8... Re8 {[%clk 0:02:55.8]} 9. Nc3 {[%clk 0:03:00.7]} 9... c6 {[%clk
0:02:55.5]} 10. e4 {[%clk 0:02:59.5]} 10... exd4 {[%clk 0:02:53.2]} 11. Nxd4
{[%clk 0:02:59.6]} 11... Nc5 {[%clk 0:02:53.1]} 12. Bf4 {[%clk 0:02:50.7]} 12...
Qe7 {[%clk 0:02:45.4]} 13. Nxc6 {[%clk 0:02:46.1]} 13... bxc6 {[%clk 0:02:31.9]}
14. Bxd6 {[%clk 0:02:44.8]} 14... Qe6 {[%clk 0:02:32.5]} 15. Bxc5 {[%clk
0:02:43.6]} 15... Qxc4 {[%clk 0:02:32.5]} 16. Bd4 {[%clk 0:02:36.5]} 16... Bg4
{[%clk 0:02:21.5]} 17. Rd2 {[%clk 0:02:30.7]} 17... Nxe4 {[%clk 0:01:44.4]} 18.
Nxe4 {[%clk 0:01:50.3]} 18... Qxc2 {[%clk 0:01:43.1]} 19. Rxc2 {[%clk
0:01:50.1]} 19... Bxd4 {[%clk 0:01:43.6]} 20. Rxc6 {[%clk 0:01:47.1]} 20... Bxb2
{[%clk 0:01:42.8]} 21. Rb1 {[%clk 0:01:47.1]} 21... Bf5 {[%clk 0:01:26]} 22.
Rxb2 {[%clk 0:01:39.8]} 22... Bxe4 {[%clk 0:01:25.6]} 23. Rc7 {[%clk 0:01:37.1]}
23... Bxg2 {[%clk 0:01:13.7]} 24. Kxg2 {[%clk 0:01:37]} 24... Rec8 {[%clk
0:01:12.9]} 25. Rbb7 {[%clk 0:01:33.3]} 25... Rxc7 {[%clk 0:01:12.2]} 26. Rxc7
{[%clk 0:01:33.6]} 26... Kg7 {[%clk 0:01:08.6]} 27. a4 {[%clk 0:01:33.2]} 27...
a5 {[%clk 0:01:07.7]} 28. Kf3 {[%clk 0:01:29.3]} 28... Kf6 {[%clk 0:01:07]} 29.
Rc5 {[%clk 0:01:29]} 29... h5 {[%clk 0:01:04.8]} 30. h4 {[%clk 0:01:26]} 30...
Ra6 {[%clk 0:01:02.5]} 31. Rb5 {[%clk 0:01:25.1]} 31... Ke6 {[%clk 0:01:00.8]}
32. Kf4 {[%clk 0:01:24]} 32... Kf6 {[%clk 0:00:59.3]} 33. Rc5 {[%clk 0:01:20.3]}
33... Ra7 {[%clk 0:00:44.1]} 34. Ke4 {[%clk 0:01:13.6]} 34... Ke6 {[%clk
0:00:41.5]} 35. Rc6+ {[%clk 0:00:56.2]} 35... Kd7 {[%clk 0:00:40.5]} 36. Rf6
{[%clk 0:00:56.1]} 36... Ke7 {[%clk 0:00:39.4]} 37. Rb6 {[%clk 0:00:54.9]} 37...
Rc7 {[%clk 0:00:28.4]} 38. Kd3 {[%clk 0:00:54.1]} 38... Rd7+ {[%clk 0:00:18.4]}
39. Kc3 {[%clk 0:00:53.4]} 39... Rc7+ {[%clk 0:00:18.4]} 40. Kb3 {[%clk
0:00:50.1]} 40... Rc5 {[%clk 0:00:16.4]} 41. Rb5 {[%clk 0:00:48.9]} 41... Kd6
{[%clk 0:00:16.2]} 42. Rb7 {[%clk 0:00:42.9]} 42... Ke6 {[%clk 0:00:15.9]} 43.
f4 {[%clk 0:00:39.3]} 43... f6 {[%clk 0:00:03.9]} 44. Rb6+ {[%clk 0:00:36.3]}
44... Ke7 {[%clk 0:00:02.7]} 45. Ra6 {[%clk 0:00:33.3]} 45... Kd7 {[%clk
0:00:02.5]} 46. Rxf6 {[%clk 0:00:32.6]} 46... Ke7 {[%clk 0:00:01.2]} 47. Rxg6
{[%clk 0:00:32.8]} 47... Kf7 {[%clk 0:00:01.9]} 48. Rg5 {[%clk 0:00:32.9]} 1-0

[Event "Betsys MČR v online bleskovém šachu 2021"]
[Site "Chess.com"]
[Date "2021.04.17"]
[Round "13"]
[White "VojtaT"]
[Black "sipos88"]
[Result "0-1"]
[WhiteElo "1718"]
[BlackElo "1863"]
[TimeControl "180+1"]
[EndTime "11:11:25 PDT"]
[Termination "Uživatel sipos88 zvítězil matem"]

1. e4 {[%clk 0:03:00.9]} 1... e5 {[%clk 0:02:50.7]} 2. Nf3 {[%clk 0:02:59.7]}
2... Nc6 {[%clk 0:02:49.9]} 3. Bb5 {[%clk 0:02:58.9]} 3... Bc5 {[%clk
0:02:48.8]} 4. c3 {[%clk 0:02:53.4]} 4... a6 {[%clk 0:02:46.2]} 5. Ba4 {[%clk
0:02:52.3]} 5... b5 {[%clk 0:02:46.1]} 6. Bc2 {[%clk 0:02:51.8]} 6... d6 {[%clk
0:02:45.5]} 7. d4 {[%clk 0:02:50.1]} 7... exd4 {[%clk 0:02:45.6]} 8. cxd4 {[%clk
0:02:50.6]} 8... Ba7 {[%clk 0:02:45.8]} 9. O-O {[%clk 0:02:45.5]} 9... Bg4
{[%clk 0:02:45.6]} 10. Be3 {[%clk 0:01:49.9]} 10... Nge7 {[%clk 0:02:35.5]} 11.
Nbd2 {[%clk 0:01:41.5]} 11... O-O {[%clk 0:02:34.9]} 12. h3 {[%clk 0:01:38.9]}
12... Bh5 {[%clk 0:02:32.6]} 13. Qe2 {[%clk 0:01:35.7]} 13... f5 {[%clk
0:02:25.5]} 14. Rad1 {[%clk 0:01:24.9]} 14... f4 {[%clk 0:02:23.1]} 15. g4
{[%clk 0:01:10.8]} 15... Bg6 {[%clk 0:02:18.6]} 16. Ng5 {[%clk 0:01:07.7]} 16...
Qd7 {[%clk 0:01:54.7]} 17. Bb3+ {[%clk 0:01:02.4]} 17... Kh8 {[%clk 0:01:53.8]}
18. d5 {[%clk 0:01:01.6]} 18... fxe3 {[%clk 0:01:32.4]} 19. dxc6 {[%clk
0:01:01.2]} 19... Nxc6 {[%clk 0:01:30.3]} 20. Nb1 {[%clk 0:00:56.6]} 20... exf2+
{[%clk 0:01:25.6]} 21. Kg2 {[%clk 0:00:54.2]} 21... Nd4 {[%clk 0:01:17.7]} 22.
Qd3 {[%clk 0:00:45.4]} 22... Nxb3 {[%clk 0:01:17.2]} 23. Qxb3 {[%clk 0:00:44]}
23... Qe7 {[%clk 0:01:13.5]} 24. Nf3 {[%clk 0:00:33.9]} 24... Bxe4 {[%clk
0:01:06.3]} 25. Nd2 {[%clk 0:00:33.1]} 25... Bxf3+ {[%clk 0:01:01.5]} 26. Nxf3
{[%clk 0:00:31.6]} 26... c5 {[%clk 0:01:00]} 27. Qd5 {[%clk 0:00:27.8]} 27...
Rad8 {[%clk 0:00:54.3]} 28. Rxf2 {[%clk 0:00:24.5]} 28... c4 {[%clk 0:00:54.6]}
29. Rff1 {[%clk 0:00:24.3]} 29... Qe2+ {[%clk 0:00:50]} 30. Kh1 {[%clk
0:00:20.6]} 30... Rf6 {[%clk 0:00:42.2]} 31. Rde1 {[%clk 0:00:20.4]} 31... Qxb2
{[%clk 0:00:35.3]} 32. Ng5 {[%clk 0:00:20.1]} 32... Qd4 {[%clk 0:00:19.6]} 33.
Nf7+ {[%clk 0:00:17.5]} 33... Rxf7 {[%clk 0:00:19.4]} 34. Qxd4 {[%clk
0:00:15.6]} 34... Rxf1+ {[%clk 0:00:17]} 35. Rxf1 {[%clk 0:00:13.8]} 35... Bxd4
{[%clk 0:00:17.9]} 36. Rd1 {[%clk 0:00:14.6]} 36... Be5 {[%clk 0:00:18.1]} 37.
Kg2 {[%clk 0:00:15.5]} 37... h6 {[%clk 0:00:18]} 38. Kf3 {[%clk 0:00:16.4]}
38... d5 {[%clk 0:00:18.2]} 39. h4 {[%clk 0:00:16]} 39... d4 {[%clk 0:00:18.3]}
40. h5 {[%clk 0:00:16.9]} 40... d3 {[%clk 0:00:18.6]} 41. Re1 {[%clk 0:00:17.6]}
41... Bc3 {[%clk 0:00:18.4]} 42. Rd1 {[%clk 0:00:18.5]} 42... d2 {[%clk
0:00:18.8]} 43. Ke4 {[%clk 0:00:19.4]} 43... Bb4 {[%clk 0:00:19]} 44. Ke3 {[%clk
0:00:20]} 44... c3 {[%clk 0:00:19.5]} 45. Rg1 {[%clk 0:00:19.7]} 45... c2 {[%clk
0:00:19.9]} 46. Ke4 {[%clk 0:00:20.1]} 46... d1=Q {[%clk 0:00:20.1]} 47. Rxd1
{[%clk 0:00:20.7]} 47... cxd1=Q {[%clk 0:00:20.5]} 48. Kf5 {[%clk 0:00:21.6]}
48... Qe1 {[%clk 0:00:21]} 49. Kg6 {[%clk 0:00:22.5]} 49... Rd6+ {[%clk
0:00:20.9]} 50. Kf7 {[%clk 0:00:22]} 50... Qe6+ {[%clk 0:00:20.5]} 51. Kf8
{[%clk 0:00:19.6]} 51... Rd7# {[%clk 0:00:20.3]} 0-1

[Event "Betsys MČR v online bleskovém šachu 2021"]
[Site "Chess.com"]
[Date "2021.04.17"]
[Round "13"]
[White "RomanHlavicka"]
[Black "HerjoAnpe"]
[Result "1-0"]
[WhiteElo "1520"]
[BlackElo "1247"]
[TimeControl "180+1"]
[EndTime "11:11:25 PDT"]
[Termination "Uživatel RomanHlavicka zvítězil matem"]

1. e4 {[%clk 0:03:00.9]} 1... e5 {[%clk 0:02:58.9]} 2. Nf3 {[%clk 0:03:00.8]}
2... Nc6 {[%clk 0:02:59.3]} 3. d4 {[%clk 0:03:00.9]} 3... exd4 {[%clk
0:02:58.7]} 4. Bc4 {[%clk 0:03:00.8]} 4... Na5 {[%clk 0:02:49.5]} 5. Bxf7+
{[%clk 0:02:54.6]} 5... Kxf7 {[%clk 0:02:47.5]} 6. Ne5+ {[%clk 0:02:54.6]} 6...
Kf6 {[%clk 0:02:30.5]} 7. Qf3+ {[%clk 0:02:33.6]} 7... Kxe5 {[%clk 0:02:28.7]}
8. Qf5+ {[%clk 0:02:30.8]} 8... Kd6 {[%clk 0:02:24]} 9. Qd5+ {[%clk 0:02:30.3]}
9... Ke7 {[%clk 0:02:20.7]} 10. Qxa5 {[%clk 0:02:30.1]} 10... d6 {[%clk
0:02:11]} 11. O-O {[%clk 0:02:25.3]} 11... c5 {[%clk 0:02:09.9]} 12. Qe1 {[%clk
0:02:18.3]} 12... Kd7 {[%clk 0:01:54.8]} 13. c3 {[%clk 0:02:16.8]} 13... dxc3
{[%clk 0:01:51.9]} 14. Nxc3 {[%clk 0:02:16.1]} 14... Kc7 {[%clk 0:01:50.6]} 15.
Nd5+ {[%clk 0:02:15.5]} 15... Kb8 {[%clk 0:01:50.2]} 16. Bf4 {[%clk 0:02:12.1]}
16... Nf6 {[%clk 0:01:48.7]} 17. Nc3 {[%clk 0:02:01.8]} 17... Qb6 {[%clk
0:01:44]} 18. e5 {[%clk 0:01:57.8]} 18... Ne8 {[%clk 0:01:39.2]} 19. exd6 {[%clk
0:01:55.8]} 19... Bxd6 {[%clk 0:01:34.7]} 20. Bxd6+ {[%clk 0:01:51.6]} 20...
Nxd6 {[%clk 0:01:34.4]} 21. Rd1 {[%clk 0:01:52]} 21... Re8 {[%clk 0:01:21.3]}
22. Qd2 {[%clk 0:01:48.1]} 22... Nc4 {[%clk 0:01:15.1]} 23. Qf4+ {[%clk
0:01:37]} 23... Qc7 {[%clk 0:01:13.8]} 24. Qxc4 {[%clk 0:01:36]} 24... a6 {[%clk
0:01:09.8]} 25. Nd5 {[%clk 0:01:35.1]} 25... Qc6 {[%clk 0:01:09.1]} 26. Qf4+
{[%clk 0:01:25.6]} 26... Ka7 {[%clk 0:01:08.6]} 27. Nc7 {[%clk 0:01:21.5]} 27...
Be6 {[%clk 0:01:01.9]} 28. Nxa8 {[%clk 0:01:16.6]} 28... Rxa8 {[%clk 0:01:00.9]}
29. Rfe1 {[%clk 0:01:14]} 29... Bxa2 {[%clk 0:00:59.4]} 30. Rc1 {[%clk
0:01:08.7]} 30... Bd5 {[%clk 0:00:58]} 31. Qe3 {[%clk 0:01:06.3]} 31... b6
{[%clk 0:00:57.8]} 32. Qe7+ {[%clk 0:01:02.4]} 32... Kb8 {[%clk 0:00:56.3]} 33.
Qf8+ {[%clk 0:00:55.9]} 33... Kb7 {[%clk 0:00:51.6]} 34. Re7+ {[%clk 0:00:54.3]}
34... Qc7 {[%clk 0:00:46.6]} 35. Rxc7+ {[%clk 0:00:52.1]} 35... Kxc7 {[%clk
0:00:46.9]} 36. Qe7+ {[%clk 0:00:48.5]} 36... Kb8 {[%clk 0:00:45.5]} 37. Qxg7
{[%clk 0:00:44.5]} 37... Ra7 {[%clk 0:00:45.7]} 38. Qe5+ {[%clk 0:00:43]} 38...
Kc8 {[%clk 0:00:40]} 39. Qxd5 {[%clk 0:00:42.3]} 39... Rd7 {[%clk 0:00:40.2]}
40. Qf5 {[%clk 0:00:36.8]} 40... Kc7 {[%clk 0:00:38.2]} 41. Re1 {[%clk
0:00:34.8]} 41... a5 {[%clk 0:00:36.3]} 42. Qe5+ {[%clk 0:00:34.1]} 42... Kc8
{[%clk 0:00:35.4]} 43. Qe8+ {[%clk 0:00:25.1]} 43... Rd8 {[%clk 0:00:34.7]} 44.
Qc6+ {[%clk 0:00:22.5]} 44... Kb8 {[%clk 0:00:33.4]} 45. Qxb6+ {[%clk
0:00:21.8]} 45... Ka8 {[%clk 0:00:31.9]} 46. Qxd8+ {[%clk 0:00:18.5]} 46... Kb7
{[%clk 0:00:31.3]} 47. Re7+ {[%clk 0:00:17.3]} 47... Kc6 {[%clk 0:00:31.1]} 48.
Qc7+ {[%clk 0:00:14.4]} 48... Kb5 {[%clk 0:00:31.2]} 49. Re5 {[%clk 0:00:13.5]}
49... Kc4 {[%clk 0:00:29.4]} 50. Qxc5+ {[%clk 0:00:13.3]} 50... Kd3 {[%clk
0:00:29.5]} 51. Qc3# {[%clk 0:00:12.9]} 1-0

[Event "Betsys MČR v online bleskovém šachu 2021"]
[Site "Chess.com"]
[Date "2021.04.17"]
[Round "13"]
[White "Clockwork7orange"]
[Black "Stalri"]
[Result "0-1"]
[WhiteElo "2311"]
[BlackElo "2218"]
[TimeControl "180+1"]
[EndTime "11:11:26 PDT"]
[Termination "Uživatel Stalri zvítězil na čas"]

1. Nc3 {[%clk 0:03:00.9]} 1... Nf6 {[%clk 0:02:59.8]} 2. e4 {[%clk 0:03:01.6]}
2... b6 {[%clk 0:02:59.9]} 3. e5 {[%clk 0:03:01.1]} 3... Ng8 {[%clk 0:03:00.3]}
4. Qf3 {[%clk 0:02:59.5]} 4... Nc6 {[%clk 0:02:56.7]} 5. Bc4 {[%clk 0:02:53]}
5... e6 {[%clk 0:02:55.3]} 6. d4 {[%clk 0:02:45.7]} 6... Nxd4 {[%clk 0:02:47.6]}
7. Qxa8 {[%clk 0:02:39.7]} 7... Nxc2+ {[%clk 0:02:48]} 8. Kd1 {[%clk 0:02:39.5]}
8... Nxa1 {[%clk 0:02:48.6]} 9. Nf3 {[%clk 0:02:33.4]} 9... Bc5 {[%clk
0:02:44.7]} 10. Ne4 {[%clk 0:02:14.4]} 10... Ne7 {[%clk 0:02:34]} 11. Nxc5
{[%clk 0:02:10.7]} 11... bxc5 {[%clk 0:02:34.9]} 12. Bg5 {[%clk 0:02:09.8]}
12... O-O {[%clk 0:02:28.4]} 13. Kc1 {[%clk 0:01:32.9]} 13... h6 {[%clk
0:02:27.5]} 14. Bxe7 {[%clk 0:01:29.4]} 14... Qxe7 {[%clk 0:02:27.5]} 15. Qxa7
{[%clk 0:01:29.1]} 15... d6 {[%clk 0:02:21.5]} 16. exd6 {[%clk 0:01:04.2]} 16...
Qxd6 {[%clk 0:02:20.6]} 17. Kb1 {[%clk 0:01:01.2]} 17... Rd8 {[%clk 0:02:10]}
18. a3 {[%clk 0:01:00.9]} 18... Qf4 {[%clk 0:02:00.5]} 19. Qxc5 {[%clk
0:00:56.5]} 19... Nc2 {[%clk 0:01:10.5]} 20. Kxc2 {[%clk 0:00:52.8]} 20... Qe4+
{[%clk 0:01:10.6]} 21. Kc1 {[%clk 0:00:49.7]} 21... Bb7 {[%clk 0:01:05.4]} 22.
Rd1 {[%clk 0:00:26.5]} 22... Qf4+ {[%clk 0:01:05.2]} 23. Nd2 {[%clk 0:00:20.1]}
23... Bxg2 {[%clk 0:00:59.2]} 24. Qe3 {[%clk 0:00:19.8]} 24... Qxh2 {[%clk
0:00:58.1]} 25. Nb3 {[%clk 0:00:14.9]} 25... Rd6 {[%clk 0:00:52]} 26. Rxd6
{[%clk 0:00:13.6]} 26... cxd6 {[%clk 0:00:52.2]} 27. Bd3 {[%clk 0:00:13.7]}
27... Bd5 {[%clk 0:00:48.1]} 28. Nd2 {[%clk 0:00:13.3]} 28... h5 {[%clk
0:00:43.8]} 29. Kc2 {[%clk 0:00:13.5]} 29... Qh4 {[%clk 0:00:40.1]} 30. f4
{[%clk 0:00:12.3]} 30... Qg4 {[%clk 0:00:37.2]} 31. a4 {[%clk 0:00:11.3]} 31...
h4 {[%clk 0:00:37]} 32. Be4 {[%clk 0:00:10.3]} 32... Bxe4+ {[%clk 0:00:29.5]}
33. Qxe4 {[%clk 0:00:10.4]} 33... h3 {[%clk 0:00:20.2]} 34. a5 {[%clk
0:00:10.3]} 34... h2 {[%clk 0:00:15.6]} 35. a6 {[%clk 0:00:10]} 35... Qg1 {[%clk
0:00:16]} 36. a7 {[%clk 0:00:08.7]} 36... Qxa7 {[%clk 0:00:15.1]} 37. Nf1 {[%clk
0:00:03.5]} 37... Qc5+ {[%clk 0:00:12.9]} 38. Kd3 {[%clk 0:00:02.9]} 38... Qg1
{[%clk 0:00:10.9]} 0-1

[Event "Betsys MČR v online bleskovém šachu 2021"]
[Site "Chess.com"]
[Date "2021.04.17"]
[Round "13"]
[White "Tolja1"]
[Black "TheFr0zenSun"]
[Result "1/2-1/2"]
[WhiteElo "2056"]
[BlackElo "2242"]
[TimeControl "180+1"]
[EndTime "11:11:26 PDT"]
[Termination "Remíza opakováním pozice"]

1. Nf3 {[%clk 0:03:00.9]} 1... c5 {[%clk 0:02:55.5]} 2. c4 {[%clk 0:03:00.5]}
2... Nc6 {[%clk 0:02:55.1]} 3. Nc3 {[%clk 0:02:57.8]} 3... g6 {[%clk 0:02:54.9]}
4. e3 {[%clk 0:02:52.7]} 4... Bg7 {[%clk 0:02:47.8]} 5. d4 {[%clk 0:02:52.1]}
5... d6 {[%clk 0:02:48.1]} 6. d5 {[%clk 0:02:49]} 6... Nb4 {[%clk 0:02:40.8]} 7.
a3 {[%clk 0:02:42.6]} 7... Na6 {[%clk 0:02:40.5]} 8. Be2 {[%clk 0:02:39.7]} 8...
Nf6 {[%clk 0:02:39.1]} 9. O-O {[%clk 0:02:39.6]} 9... O-O {[%clk 0:02:38.5]} 10.
h3 {[%clk 0:02:39.7]} 10... Bd7 {[%clk 0:02:34.2]} 11. Qc2 {[%clk 0:02:38.5]}
11... Nc7 {[%clk 0:02:28.1]} 12. a4 {[%clk 0:02:36.4]} 12... b6 {[%clk
0:02:16.7]} 13. b3 {[%clk 0:02:32.9]} 13... Rb8 {[%clk 0:02:15.2]} 14. Bb2
{[%clk 0:02:32.7]} 14... Na6 {[%clk 0:02:10.6]} 15. Qd2 {[%clk 0:02:19.3]} 15...
Nb4 {[%clk 0:02:06.3]} 16. e4 {[%clk 0:02:11.2]} 16... Ne8 {[%clk 0:01:59.8]}
17. Rfe1 {[%clk 0:02:07.8]} 17... Nc7 {[%clk 0:01:57.6]} 18. Bf1 {[%clk
0:02:03.4]} 18... f6 {[%clk 0:01:55.4]} 19. Nb5 {[%clk 0:01:50.3]} 19... a6
{[%clk 0:01:49.4]} 20. Nxc7 {[%clk 0:01:38.6]} 20... Qxc7 {[%clk 0:01:50.3]} 21.
Bc3 {[%clk 0:01:38.1]} 21... a5 {[%clk 0:01:20.4]} 22. Qb2 {[%clk 0:01:23.1]}
22... Rbe8 {[%clk 0:01:18.4]} 23. Nd2 {[%clk 0:01:17.8]} 23... e5 {[%clk
0:01:04.9]} 24. dxe6 {[%clk 0:01:10.8]} 24... Rxe6 {[%clk 0:01:04.4]} 25. Rad1
{[%clk 0:01:01]} 25... Bc6 {[%clk 0:01:04.3]} 26. f3 {[%clk 0:00:57]} 26... Rfe8
{[%clk 0:01:02.9]} 27. Qb1 {[%clk 0:00:49.9]} 27... Bh6 {[%clk 0:00:42.9]} 28.
Bd3 {[%clk 0:00:42.3]} 28... Bf4 {[%clk 0:00:41.8]} 29. Nf1 {[%clk 0:00:40.3]}
29... Be5 {[%clk 0:00:37]} 30. Bxe5 {[%clk 0:00:29.9]} 30... dxe5 {[%clk
0:00:36.2]} 31. Bc2 {[%clk 0:00:26.2]} 31... Rd6 {[%clk 0:00:31.9]} 32. Rxd6
{[%clk 0:00:25.5]} 32... Qxd6 {[%clk 0:00:31.4]} 33. Rd1 {[%clk 0:00:25.7]}
33... Qc7 {[%clk 0:00:30.7]} 34. Ne3 {[%clk 0:00:24.8]} 34... Rd8 {[%clk
0:00:30.8]} 35. Nd5 {[%clk 0:00:20.4]} 35... Bxd5 {[%clk 0:00:30.7]} 36. cxd5
{[%clk 0:00:20.2]} 36... Rd6 {[%clk 0:00:18]} 37. Bd3 {[%clk 0:00:19.9]} 37...
Nxd3 {[%clk 0:00:13.1]} 38. Qxd3 {[%clk 0:00:18.9]} 38... Kg7 {[%clk 0:00:13.8]}
39. Rc1 {[%clk 0:00:18.6]} 39... Qb7 {[%clk 0:00:11.9]} 40. Rc2 {[%clk
0:00:16.7]} 40... Kf7 {[%clk 0:00:12.1]} 41. Kh2 {[%clk 0:00:16.8]} 41... Kg7
{[%clk 0:00:12.4]} 42. Qc4 {[%clk 0:00:16.6]} 42... Kf7 {[%clk 0:00:12.4]} 43.
Qd3 {[%clk 0:00:16.7]} 43... Kg7 {[%clk 0:00:12.5]} 44. Qc4 {[%clk 0:00:16.8]}
44... Kf7 {[%clk 0:00:12.6]} 45. Qd3 {[%clk 0:00:16.9]} 1/2-1/2